Cogmind - Beta 15 @@@ ROGUE MODE // 2025.07.24 @ 18:29:05 Player: Bec Result: Destroyed by Y-45 Defender with Heavy Assault Rifle Performance ------------- Evolutions (1) 500 Regions Visited (3) 600 Robots Destroyed (46) 230 Value Destroyed (1008) 1008 Prototype IDs (0) 0 Alien Tech Used (0) 0 Bonus (0) 0 TOTAL SCORE: 2338 Bonus ------- None Cogmind --------- Core Integrity 0/400 Matter 229/300 Energy 248/250 System Corruption 3% Temperature Cool (0) Movement Treading (160) Location -9/Storage Parts ------- > --- POWER (1) -------- Ion Engine > --- PROPULSION (4) --- Light Treads Light Treads Light Treads Light Treads > --- UTILITY (2) ------ Medium Storage Unit Signal Interpreter > --- WEAPON (2) ------- Heavy Assault Rifle Heavy Assault Rifle > --- INVENTORY (10) --- Light Ion Engine Light Treads Drone Bay (2/2) Drone Bay (2/2) Drone Bay (2/2) Drone Bay (2/2) Rocket Launcher Rocket Launcher Rocket Launcher Peak State ------------ > --- POWER ------------ Ion Engine > --- PROPULSION ------- Light Treads Light Treads Light Treads Light Treads > --- UTILITY ---------- Medium Storage Unit Signal Interpreter > --- WEAPON ----------- Heavy Assault Rifle Heavy Assault Rifle > --- INVENTORY -------- Ion Engine Light Ion Engine Light Treads Shield Generator Drone Bay Drone Bay Drone Bay Drone Bay Drone Bay [Rating: 14] Favorites ----------- Power Ion Engine Engine Ion Engine Propulsion Light Treads Treads Light Treads Flight Unit Flight Unit Utility Signal Interpreter Device ECM Suite Storage Small Storage Unit Processor Signal Interpreter Weapon Autogun Ballistic Gun Autogun Build | -11 -10 -9 -9 ------- Run | Yrd Mat Mat Sto Slots Evolved 2 | . . 2 . Power . | . . . . Propulsion 2 | . . 2 . Utility . | . . . . Weapon . | . . . . Parts Attached 36 | 7 5 7 17 Power 6 | 2 . . 4 Engine 6 | 2 . . 4 Core . | . . . . Reactor . | . . . . Propulsion 16 | 2 . 6 8 Treads 8 | 2 . . 6 Leg . | . . . . Wheel . | . . . . Hover . | . . . . Flight 8 | . . 6 2 Utility 5 | 1 2 1 1 Device 1 | . 1 . . Storage 3 | 1 . 1 1 Processor 1 | . 1 . . Hackware . | . . . . Protection . | . . . . Artifact . | . . . . Weapon 9 | 2 3 . 4 Energy Gun . | . . . . Energy Cannon . | . . . . Ballistic Gun 9 | 2 3 . 4 Ballistic Cannon . | . . . . Launcher . | . . . . Special Weapon . | . . . . Impact Weapon . | . . . . Slashing Weapon . | . . . . Piercing Weapon . | . . . . Special Melee Weapon . | . . . . Unidentified Prototypes . | . . . . Parts Lost 9 | . 2 1 6 Power 1 | . . . 1 Propulsion 6 | . 1 1 4 Utility . | . . . . Weapon 2 | . 1 . 1 Highest Loss Streak 4 | . 2 1 4 To Critical Strikes . | . . . . Average Backups 7 | 2 6 6 8 Power 1 | . 1 1 1 Propulsion 2 | 1 4 2 2 Utility 1 | . . . 2 Weapon 1 | . 1 2 1 Tool/Special . | . . . . Unused Backups 14 | . 5 . 9 Power 1 | . . . 1 Propulsion 3 | . 3 . . Utility 7 | . . . 7 Weapon 3 | . 2 . 1 Tool/Special . | . . . . Average Slot Usage (%) 94 | . 92 97 95 Engine 11 | . 14 11 10 Treads 27 | . 27 . 33 Flight 9 | . . 40 7 Device 1 | . 4 . . Storage 11 | . 14 11 11 Processor 9 | . 4 11 11 Ballistic Gun 23 | . 28 22 21 Peak Build Rating 14 | 6 9 12 14 Average Rating 10 | 4 6 10 11 On Entrance 6 | . 6 9 11 Naked Turns . | . . . . Heaviest Build 21 | 14 16 14 21 Greatest Support 80 | 40 40 16 80 Greatest Overweight (x) 1 | . . . 1 Average Overweight (x) . | . . . . Largest Inventory Capacity 10 | 8 8 10 10 Average Capacity 8 | 6 8 8 9 Most Carried 10 | 4 8 8 10 Average Carried 7 | 1 6 5 8 Final Capacity 10 | 8 8 8 10 Final Carried 9 | 3 8 6 9 Class Distribution -------------------- 47% | Scavenger-Mutant 36% | Mutant 15% | Scavenger-Sprinter Dominant Class ---------------- Mutant | -10/Materials Scavenger-Sprinter | -9/Materials Scavenger-Mutant | -9/Storage Resources | -11 -10 -9 -9 ----------- Run | Yrd Mat Mat Sto Matter Collected 1182 | 130 285 136 631 Remotely . | . . . . Salvage Created 1453 | . 313 247 893 Parts 109 | . 23 23 63 Haulers Intercepted 4 | . . 2 2 Recyclers Shooed . | . . . . Parts Field Recycled . | . . . . Retrieved Matter . | . . . . Parts Self-Destructed . | . . . . Prevented . | . . . . Kills | -11 -10 -9 -9 ------- Run | Yrd Mat Mat Sto Combat Hostiles Destroyed 36 | . 12 5 19 Guns 36 | . 12 5 19 Classes Destroyed 7 | . 3 2 2 Worker 1 | . . . 1 Hauler 4 | . . 2 2 Operator 2 | . . 1 1 Watcher 3 | . 2 . 1 Swarmer 16 | . 9 3 4 Grunt 14 | . 3 2 9 Sentry 6 | . . . 6 Best Kill Streak 5 | . 3 5 5 Combat Bots Only 5 | . 3 3 5 Max Kills in Single Turn 2 | . 2 1 2 Gunslinging 1 | . 1 . 1 Exploded . | . . . . Melee . | . . . . Uniques/NPCs Destroyed . | . . . . Combat | -11 -10 -9 -9 -------- Run | Yrd Mat Mat Sto Hostile Shots Fired 235 | . 84 33 118 Missed 59 | . 17 12 30 Hits 176 | . 67 21 88 Projectile 176 | . 67 21 88 Critical Strikes 5 | . . 1 4 Damage Taken 2034 | . 642 235 1157 Core 574 | . 165 51 358 Absorbed by Shields . | . . . . Regen/Repaired (Parts) 19 | . . . 19 Core Remaining (%) 67 | 100 34 . . Volleys Fired 124 | . 36 24 64 Largest 2 | . 2 2 2 Hottest 46 | . 40 46 46 Shots Fired 243 | . 72 48 123 Gun 243 | . 72 48 123 Cannon . | . . . . Launcher . | . . . . Special . | . . . . Kinetic 243 | . 72 48 123 Thermal . | . . . . Explosive . | . . . . Electromagnetic . | . . . . Robot Hit Streak 15 | . 11 7 15 Robot Miss Streak 6 | . 3 6 3 Penetration Max . | . . . . Secondary Targets 8 | . 3 1 4 Max Gunslinging Chain 1 | . 1 1 1 Shots Hit Robots 161 | . 48 25 88 Core Hits 62 | . 16 12 34 Critical Kills 1 | . . . 1 Critical Parts Destroyed 1 | . . . 1 Critical Strikes 2 | . . . 2 Destroy 2 | . . . 2 Melee Attacks . | . . . . Impact . | . . . . Slashing . | . . . . Piercing . | . . . . Sneak Attacks . | . . . . Combat Hostiles . | . . . . Follow-up Attacks . | . . . . Damage Inflicted 2356 | . 622 368 1366 Guns 2347 | . 622 368 1357 Cannons . | . . . . Explosions . | . . . . Melee . | . . . . Ramming 9 | . . . 9 Kinetic 2347 | . 622 368 1357 Thermal . | . . . . Explosive . | . . . . Electromagnetic . | . . . . Impact . | . . . . Slashing . | . . . . Piercing . | . . . . Highest Corruption 3 | . . 2 3 Average Corruption 2 | . . 2 2 Corruption Purged . | . . . . Corruption Blocked . | . . . . Effects 25 | . . 1 24 Message Errors 5 | . . . 5 Matter Fused 10 | . . . 10 Heat Flow Errors 1 | . . . 1 Parts Rejected 2 | . . . 2 Data Loss (minor) 4 | . . . 4 Data Loss (major) 2 | . . 1 1 Weapon Failures 1 | . . . 1 Overload Shots . | . . . . Overflow Damage . | . . . . Projectiles . | . . . . Explosions . | . . . . Melee . | . . . . Knockbacks 1 | . . . 1 Impact 1 | . . . 1 Kinetic . | . . . . Secondary . | . . . . Self-Inflicted Damage . | . . . . Shots . | . . . . Rammed 3 | . . . 3 Targets Rammed 3 | . . . 3 Kicked . | . . . . Crushed . | . . . . Highest Temperature 154 | . 5 35 154 Average Temperature 16 | . 4 11 20 Received Heat Transfer 759 | . 174 87 498 Siege Activations . | . . . . Martial Activations . | . . . . Shielding Activations . | . . . . Robots Disrupted . | . . . . Combat Hostiles . | . . . . Robots Corrupted . | . . . . Combat Hostiles . | . . . . Parts Fried . | . . . . Impact Corruptions . | . . . . Robots Melted . | . . . . Combat Hostiles . | . . . . Parts Melted . | . . . . Heat Transferred . | . . . . Parts Sabotaged . | . . . . Parts Stolen . | . . . . Parts Stripped . | . . . . Power Chain Reactions . | . . . . Alert | -11 -10 -9 -9 ------- Run | Yrd Mat Mat Sto Maximum Alert Level 1 | . . . 1 Low Security (%) 99 | 100 100 100 99 Level 1 . | . . . . Level 2 . | . . . . Level 3 . | . . . . Level 4 . | . . . . Level 5 . | . . . . High Security . | . . . . Max Security . | . . . . Peak Influence 208 | . 98 120 208 Initial 42 | . . 19 42 Average 94 | . 44 69 124 Influence Increases 1052 | . 302 191 559 Destroy 0b10 Robot/C 720 | . 240 100 380 Destroy 0b10 Robot/NC 50 | . 10 15 25 Destroy Leader 174 | . 44 14 116 Successful Hack 44 | . 7 2 35 Destroy Structure 4 | . 1 . 3 Partial Spotted 30 | . . 30 . Lose Combat Pursuer 30 | . . 30 . Influence Decreases 989 | . 255 138 596 Entered New Map 86 | . . 28 58 Time Decay 813 | . 235 100 478 Lost Part 90 | . 20 10 60 Squads Dispatched 7 | . 1 1 5 Investigation 4 | . 1 . 3 Extermination . | . . . . Reinforcement 3 | . . 1 2 Assault . | . . . . Garrison . | . . . . Intercept . | . . . . Searches Triggered . | . . . . Construction Impeded . | . . . . Haulers Reinforced . | . . . . Active Scanning Responses . | . . . . Cargo Convoy Interrupts . | . . . . Stealth | -11 -10 -9 -9 --------- Run | Yrd Mat Mat Sto Distress Signals 2 | . . 1 1 Communications Jammed . | . . . . Distress Signals . | . . . . Times Spotted 58 | . 15 19 24 Peak Tracking Total 9 | . 3 9 6 Tactical Retreats 2 | . . 2 . Traps | -11 -10 -9 -9 ------- Run | Yrd Mat Mat Sto Traps Triggered 3 | . 1 1 1 Indirectly . | . . . . Trap Hack Attempts . | . . . . Triggered . | . . . . Disarmed . | . . . . Reprogrammed . | . . . . Reused . | . . . . Traps Extracted . | . . . . Installed . | . . . . Triggered . | . . . . Machines | -11 -10 -9 -9 ---------- Run | Yrd Mat Mat Sto Machines Disabled . | . . . . Max in Single Turn . | . . . . Machines Repaired . | . . . . Machines Dismantled . | . . . . Machines Sabotaged . | . . . . Overloaded Fab Kills . | . . . . Hacking | -11 -10 -9 -9 --------- Run | Yrd Mat Mat Sto Machines Accessed 13 | . 1 3 9 Terminals 10 | . 1 2 7 Fabricators . | . . . . Repair Stations 1 | . . . 1 Recycling Units 1 | . . . 1 Scanalyzers 1 | . . 1 . Garrison Access . | . . . . Total Hacks 35 | . 4 8 23 Successful 19 | . 2 5 12 Failed 16 | . 2 3 11 Catastrophic 6 | . 1 2 3 Database Lockouts . | . . . . Manual 15 | . 4 4 7 Terminals 22 | . 4 3 15 Fabricators . | . . . . Repair Stations 3 | . . . 3 Recycling Units 5 | . . . 5 Scanalyzers 5 | . . 5 . Garrison Access . | . . . . Terminal Hacks 7 | . 2 . 5 Open Door 4 | . . . 4 Terminal Index 1 | . 1 . . Alert Level 1 | . . . 1 Patrol Status 1 | . 1 . . Fabricator Hacks . | . . . . Repair Station Hacks 2 | . . . 2 Scan Component 1 | . . . 1 Repair 1 | . . . 1 Recycling Unit Hacks 5 | . . . 5 Recycle Component 3 | . . . 3 Process 1 | . . . 1 Retrieve Matter 1 | . . . 1 Scanalyzer 5 | . . 5 . Insert Component 3 | . . 3 . Analyze 2 | . . 2 . Garrison Access Hacks . | . . . . Unauthorized Hacks . | . . . . Terminals . | . . . . Fabricators . | . . . . Repair Stations . | . . . . Recycling Units . | . . . . Scanalyzers . | . . . . Garrison Access . | . . . . Data Cores Recovered 1 | . . 1 . Used . | . . . . Hacking Detections 10 | . 1 3 6 Full Trace Events 4 | . . 1 3 Feedback Events 1 | . . . 1 Corruption 1 | . . . 1 Feedback Blocked . | . . . . Robot Schematics Acquired . | . . . . Robots Built . | . . . . Authchips . | . . . . Time . | . . . . Total Robot Build Rating . | . . . . Part Schematics Acquired 2 | . . 2 . Parts Built . | . . . . Authchips . | . . . . Time . | . . . . Total Part Build Rating . | . . . . Parts Repaired 1 | . . . 1 Time 13 | . . . 13 Parts Recycled 3 | . . . 3 Recycled Matter 258 | . . . 258 Retrieved Matter 258 | . . . 258 Retrieved Components . | . . . . Parts Scanalyzed 2 | . . 2 . Part Schematics Acquired 2 | . . 2 . Parts Damaged . | . . . . Bothacking | -11 -10 -9 -9 ------------ Run | Yrd Mat Mat Sto Used RIF Installer . | . . . . Robots Hacked . | . . . . Non-combat . | . . . . Combat . | . . . . Robot Hacks Applied . | . . . . Relay Couplers Released . | . . . . Fabnet Peak Effective % . | . . . . Robots Rewired . | . . . . Allies Hacked . | . . . . Hacks Repelled . | . . . . Allies | -11 -10 -9 -9 -------- Run | Yrd Mat Mat Sto Total Allies . | . . . . Largest Group . | . . . . Highest-Rated Group . | . . . . Highest-Rated Ally . | . . . . Total Orders . | . . . . Ally Attacks . | . . . . Total Damage . | . . . . Kills . | . . . . Allies Corrupted . | . . . . Allies Melted . | . . . . Intel | -11 -10 -9 -9 ------- Run | Yrd Mat Mat Sto Active Infowar (turns) 141 | . 141 . . ECM 141 | . 141 . . Robot Analysis Total . | . . . . Derelict Logs Recovered . | . . . . Drone Launches . | . . . . Drone Recoveries . | . . . . Exploration | -11 -10 -9 -9 ------------- Run | Yrd Mat Mat Sto Turns Passed 2030 | 59 518 217 1236 Spaces Moved 1356 | 35 223 379 719 Core 11 | 11 . . . Treads 755 | 24 223 . 508 Legs . | . . . . Wheels . | . . . . Hover . | . . . . Flight 590 | . . 379 211 Fastest Speed 31 | 50 160 31 31 Average Speed 108 | 125 160 31 132 Slowest Speed 160 | 160 160 31 160 Overloaded Moves . | . . . . Propulsion Burnouts . | . . . . Robots Hopped 1 | . . 1 . Potential Cave-ins . | . . . . Cave-ins Triggered . | . . . . Exploration Rate (%) 35 | 3 40 32 68 Regions Visited 3 Branch Regions 1 Pre-discovered Areas . | . . . . Known Exits Taken 2 | . 1 1 . Unknown Exits Taken 1 | 1 . . . Scrap Searched . | . . . . Spaces Dug . | . . . . Terrain Destroyed . | . . . . Melee . | . . . . Projectile . | . . . . AOE . | . . . . Terrain Rammed . | . . . . Walls Destroyed . | . . . . Machines Disabled . | . . . . Actions | -11 -10 -9 -9 --------- Run | Yrd Mat Mat Sto Total 1706 | 50 316 437 903 Wait 104 | . 31 18 55 Move 1351 | 34 222 376 719 Hop 1 | . . 1 . Pick Up 54 | 9 14 5 26 Fast Attach 2 | . 1 . 1 Attach 26 | 6 2 6 12 Detach 3 | . . . 3 Swap 13 | 1 2 4 6 Drop 25 | . 8 3 14 Fire 124 | . 36 24 64 Melee . | . . . . Ram 1 | . . . 1 Kick . | . . . . Crush 2 | . . . 2 Escape Stasis . | . . . . Rewire . | . . . . Trap . | . . . . Miscellaneous . | . . . . Route ------- -11/Scrapyard -10/Materials -9/Materials (discovered 3 exits: *Mat / *Min / *Sto) -9/Storage History --------- Turn | Location | Event 9 | -11/Scrapyard | Discovered new exit (range 15) 60 | -11/Scrapyard | Entered Materials 300 | -10/Materials | Build established: Mutant 476 | -10/Materials | Discovered new exit (range 16) 513 | -10/Materials | Identified exit to Materials 516 | -10/Materials | Core integrity fell below 50% 578 | -10/Materials | Entered another Materials area 578 | -9/Materials | Evolved 2 slots: Propulsion x2 642 | -9/Materials | Discovered new exit (range 12) 650 | -9/Materials | Identified exit to Mines 658 | -9/Materials | Discovered new exit (range 8) 660 | -9/Materials | Identified exit to Storage 665 | -9/Materials | Discovered new exit (range 4) 667 | -9/Materials | Identified exit to Materials 795 | -9/Materials | Entered Storage 826 | -9/Storage | Repaired Flight Unit 857 | -9/Storage | Build established: Scavenger-Sprinter 973 | -9/Storage | Lost 4 parts (1p2n1w) 989 | -9/Storage | Core integrity fell below 50% 1102 | -9/Storage | Core integrity fell below 20% 1454 | -9/Storage | Build established: Scavenger-Mutant 2031 | -9/Storage | Destroyed by Y-45 Defender with Heavy Assault Rifle Last Messages --------------- 01909_ OBE:OLUGVUS,WEH0SXTSXTH 01924_ System corrupted: Matter fused (-9). 01981_ System corrupted: Matter fused (-10). 01986_ O-16 Technician: "IFF HANDSHAKE FAILED. SECURING TERMINAL." 01991_ O-16 Technician uses terminal to summon reinforcements. 01991_ ALERT: Hostiles spotted, dispatching reinforcements to Terminal S002. 01991_ O-16 Technician locks terminal. 01994_ O-16 Technician destroyed. 02000_ Connecting with Door Terminal... >>Open(Door) Sealed Heavy Doors opened. 02013_ System corrupted: Component data lost. 02016_ Dropped Shield Generator. 02018_ Dropped Ion Engine. 02022_ Acquired Rocket Launcher. 02027_ Dropped Drone Bay. 02030_ Acquired Rocket Launcher. Map ----- +----------------------------------------------------+ | !#??????????????????????????????? | | #??????????????????????????????? | | #??????????????????????????????? | | #??????????????????????????????? | | #??????????????????????????????? | | #??????????????????????????????? | | #??????????????????????????????? | | #??????????????????????????????? | | #??????????????????????????????? | | #??????????????????????????????? | | #??????????????? ????????????? | | #??????????????? ????????????? | | #??????????????? ???????????? | | #??????????????? "???????????? | | #??????????????? T???????????? | | #??????????????? /%"???????????? | | #??????????????? ???????????? | | #??????????????? ???????????? | | #???????????????# #???????????? | | #???#######+##### #???????????? | | #???# # #???????????? | | #???# / # #???????????? | | #???# # ######??????? | | ##### # #* !!#??????? | | / ! # #! ]]#??????? | | ## ! ! + Y ]@#??????? | | ## # #T####??????? | | ############## ###?????????? | | #????????????# T#??????????? | | ###########??# ##??????????? | | #??""""??????###### | | ######## #???????###### # | | #??????# #???????# # # | | +#####???# #???????# # !# | | #??## #???????# # # | | #??# #???????# +! # | | """ #??# #???????# # # | | ""?" #### ######### # ! # | | ???" + + # | | ???" ####+## #### # | | """" #? # #??###### | | " ## + #???????? | | ## ##### #???????? | | ####### !#???###########???????? | | ??????#* #?????????????????????? | | ??????#/ !#?????????????????????? | | ???????####??????????????????????? | | | | | | | +----------------------------------------------------+ Best States ------------- Heat Dissipation 28 Energy Generation 12 Energy Capacity 265 Matter Stores 300 Matter Capacity 300 Sight Range 16 Terrain Scan Density 10 ECM Strength 1 Evasion (%) 63 Recoil Reduction 4 Item Schematics ----------------- Flight Unit | -9/Materials | Scanalyzed Lgt. Ion Engine | -9/Materials | Scanalyzed Robot Schematics ------------------ None Fabricated ------------ Nothing Repaired ---------- Flight Unit | 5% | -9/Storage Alien Tech Used ----------------- None Achievements -------------- None Challenges ------------ None Game ------ Seed HybridExoskeletonTube Manual? 0 Play Time 00:35:12 Cumulative 8.4 hours Start 2025.07.24 @ 17:56:15 End 2025.07.24 @ 18:29:05 Sessions 1 Manual Loads 0 Difficulty Rogue Special Mode None Game No. 11 Rogue 11 Adventurer 0 Explorer 0 Win Type - Total 0 Types 0/0/0/0/0/0/0/0/0/0 Lore% 5 Gallery% 8 Achievement% 13 Wizard Run 0 Options --------- Layout 1 ASCII 0 Keyboard 0 Movement Mouse Keybinds 0 Fullscreen 2 Font 16/SmallcapsGlow Map View 55x38 Zoom Use 0% Tactical HUD 1 Map Filters NONE Filters NONE Steam 1 RUN: ce23b0c5-ff45-4331-b83a-e81c5286577e